bitfinex/quotes_SOLUSD_20250321
["timestamp","ask_amount","ask_price","bid_price","bid_amount"]
[1742583585730,0.063,127.43,127.42,51.14207364]
[1742583586316,0.063,127.43,127.41,34.6497505]
[1742583586515,0.063,127.43,127.42,8.36]
[1742583588524,0.063,127.43,127.42,16.208]
[1742583588835,0.063,127.43,127.42,8.36]
[1742583589741,0.063,127.43,127.4,42.4987505]
[1742583589950,0.063,127.43,127.4,16.209]
[1742583590230,0.063,127.43,127.4,50.8587505]
[1742583590735,0.063,127.43,127.39,0.03]
[1742583590943,34.7127505,127.43,127.39,0.03]
[1742583591536,34.6497505,127.42,127.39,0.03]
[1742583591841,34.6497505,127.41,127.39,0.03]
[1742583592234,34.6497505,127.42,127.39,0.03]
[1742583593128,0.063,127.43,127.39,21.68411549]
[1742583593327,7.9106,127.43,127.39,21.68411549]
[1742583594544,29.56471549,127.43,127.39,0.03]
[1742583595046,21.65411549,127.41,127.39,0.03]
[1742583595225,21.65411549,127.42,127.39,0.03]
[1742583595430,7.9106,127.43,127.39,21.68411549]
[1742583595638,29.56471549,127.43,127.39,0.03]
[1742583596047,21.65411549,127.42,127.39,0.03]
[1742583596555,7.8486,127.41,127.39,0.03]
[1742583596740,7.8483,127.42,127.39,0.03]
[1742583597048,0.063,127.43,127.41,21.65411549]
[1742583597224,0.063,127.43,127.42,8.36]
[1742583599750,0.063,127.43,127.42,38.14643863]
[1742583600326,0.063,127.43,127.42,30.29843863]
[1742583601148,0.063,127.43,127.42,8.36]
[1742583602056,0.063,127.43,127.4,8.36]
[1742583602843,7.9104,127.43,127.4,8.36]
[1742583603562,0.063,127.43,127.42,21.65411549]
[1742583603757,0.063,127.43,127.42,21.93843863]
[1742583604253,0.063,127.43,127.42,0.28432314]
[1742583605028,0.063,127.43,127.4,30.04411549]
[1742583605454,0.063,127.43,127.4,8.39]
[1742583605760,21.65411549,127.41,127.4,0.03]
[1742583606656,25.53691549,127.41,127.4,0.03]
[1742583607157,33.38551549,127.41,127.39,0.03]
[1742583607361,43.30823098,127.4,127.37,0.03]
[1742583607544,43.30823098,127.38,127.37,0.03]
[1742583608034,21.65411549,127.38,127.37,0.03]
[1742583608237,20.0,127.36,127.35,0.03]
[1742583608444,45.74221549,127.36,127.35,0.03]
[1742583609338,53.59391549,127.36,127.35,0.03]
[1742583611453,29.50481549,127.38,127.35,0.03]
[1742583611956,21.65411549,127.37,127.35,0.03]
[1742583612453,21.65411549,127.36,127.35,0.03]
[1742583613160,29.50581549,127.36,127.35,0.03]
[1742583613355,21.65411549,127.36,127.35,0.03]
[1742583613733,29.50481549,127.38,127.35,0.03]
[1742583613936,33.73091549,127.39,127.35,0.03]
[1742583614541,29.50271549,127.41,127.36,30.01411549]
[1742583614862,21.65411549,127.4,127.36,8.36]
[1742583615262,33.68021549,127.42,127.37,21.65411549]
[1742583615636,21.65411549,127.41,127.36,37.86581549]
[1742583616838,7.8492,127.4,127.36,37.86581549]
[1742583617038,21.65411549,127.41,127.36,37.86581549]
[1742583617343,41.65411549,127.41,127.36,37.86581549]
[1742583617542,21.65411549,127.4,127.36,8.36]
[1742583617766,21.65411549,127.39,127.36,8.36]
[1742583617943,21.65411549,127.38,127.36,8.36]
[1742583618264,21.65411549,127.38,127.36,0.03]
[1742583618459,21.65411549,127.37,127.36,0.03]
[1742583618838,29.50521549,127.37,127.36,0.03]
[1742583620446,7.8507,127.38,127.36,0.03]
[1742583620655,29.50421549,127.39,127.36,0.03]
[1742583621070,39.6219,127.41,127.36,21.68411549]
[1742583621071,21.65411549,127.41,127.36,21.68411549]
[1742583621243,33.68031549,127.42,127.37,21.65411549]
[1742583621560,21.65411549,127.41,127.37,8.34]
[1742583622468,29.50231549,127.42,127.37,29.99411549]
[1742583623170,29.50231549,127.42,127.38,7.8505]
[1742583623652,29.50231549,127.42,127.37,37.84501549]
[1742583624554,0.063,127.43,127.39,21.65411549]
[1742583624950,0.063,127.43,127.4,21.65411549]
[1742583625156,29.56451549,127.43,127.38,29.78863863]
[1742583626473,0.063,127.43,127.39,21.65411549]
[1742583626778,7.9104,127.43,127.39,21.65411549]
[1742583627074,29.56451549,127.43,127.38,29.78863863]
[1742583627756,29.56451549,127.43,127.38,38.12863863]
[1742583628352,21.71711549,127.43,127.38,38.12863863]
[1742583628554,0.063,127.43,127.39,21.65411549]
[1742583629980,0.063,127.43,127.4,29.50331549]
[1742583630184,0.063,127.43,127.4,37.84331549]
[1742583630491,0.063,127.43,127.42,21.93843863]
[1742583632282,0.063,127.43,127.42,29.78643863]
[1742583632458,0.063,127.43,127.4,8.34]
[1742583632655,21.71711549,127.43,127.4,8.34]
[1742583634388,29.56481549,127.43,127.4,8.34]
[1742583634887,7.9107,127.43,127.4,8.34]
[1742583635091,0.063,127.43,127.41,21.93843863]
[1742583636477,0.063,127.43,127.41,29.78653863]
[1742583637880,21.71711549,127.43,127.4,8.34]
[1742583638588,21.65411549,127.42,127.38,8.62432314]
[1742583639156,21.71711549,127.43,127.38,38.12883863]
[1742583640084,29.56471549,127.43,127.38,38.12883863]
[1742583642587,0.063,127.43,127.38,38.12883863]
[1742583642793,0.063,127.43,127.39,21.65411549]
[1742583643662,0.063,127.43,127.38,38.12883863]
[1742583643869,21.71711549,127.43,127.38,38.12883863]
[1742583644686,29.50211549,127.42,127.38,8.34]
[1742583645377,21.65411549,127.41,127.37,8.37]
[1742583645579,21.65411549,127.41,127.37,0.03]
[1742583645887,0.063,127.43,127.4,21.65411549]
[1742583646086,0.063,127.43,127.39,21.65411549]
[1742583646775,0.063,127.43,127.38,8.34]
[1742583646981,0.063,127.43,127.39,21.65411549]
[1742583647880,0.063,127.43,127.4,21.65411549]
[1742583648188,0.063,127.43,127.42,21.65411549]
[1742583648403,0.063,127.43,127.42,30.25843863]
[1742583648884,0.063,127.43,127.39,29.50361549]
[1742583649095,0.063,127.43,127.4,8.32]
[1742583649392,21.71711549,127.43,127.4,8.32]
[1742583650085,25.64911549,127.42,127.37,21.68411549]
[1742583650281,21.65411549,127.41,127.37,0.03]
[1742583651002,0.063,127.43,127.4,21.65411549]
[1742583651299,0.063,127.43,127.41,29.97411549]
[1742583652295,0.063,127.43,127.42,21.65411549]
[1742583653095,0.063,127.43,127.42,29.50211549]
[1742583653586,0.063,127.43,127.42,29.78643863]
[1742583653793,0.0001,127.43,127.42,48.72041063]
[1742583654491,0.063,127.53,127.5,0.28432314]
[1742583654695,0.063,127.53,127.52,21.65411549]
[1742583654868,0.063,127.53,127.51,8.32]
[1742583655193,0.063,127.53,127.5,8.32]
[1742583655393,21.71711549,127.53,127.5,8.32]
[1742583655769,21.65411549,127.52,127.5,8.32]
[1742583656488,41.65411549,127.51,127.47,207.48]
[1742583656671,21.65411549,127.49,127.47,207.48]
[1742583656871,21.65411549,127.5,127.47,207.48]
[1742583657496,29.49721549,127.5,127.47,207.48]
[1742583657698,21.65411549,127.48,127.46,8.32]
[1742583657999,25.89651549,127.5,127.46,8.32]
[1742583658293,21.65411549,127.49,127.46,8.32]
[1742583658682,21.65411549,127.48,127.44,8.32]
[1742583659072,34.62465169,127.48,127.44,8.32]
[1742583659278,42.46905169,127.48,127.43,42.94465169]
[1742583659789,34.62465169,127.48,127.43,42.94465169]
[1742583660208,34.62465169,127.49,127.43,8.32]
[1742583660497,34.62465169,127.47,127.43,8.32]
[1742583661303,7.8454,127.47,127.43,42.94465169]
[1742583661493,7.8454,127.47,127.43,34.62465169]
[1742583661689,7.8454,127.47,127.43,42.94465169]
[1742583661893,46.71025169,127.5,127.45,34.62465169]
[1742583662074,4.2424,127.5,127.46,34.62465169]
[1742583662606,20.0,127.51,127.47,34.62465169]
[1742583662784,27.8427,127.51,127.47,34.62465169]
[1742583663093,34.68765169,127.53,127.48,42.94465169]
[1742583663482,0.063,127.53,127.5,34.62465169]
[1742583663695,0.063,127.53,127.51,34.62465169]
[1742583663997,42.52915169,127.53,127.48,42.94465169]
[1742583664404,42.52915169,127.53,127.49,34.90897483]
[1742583664405,0.063,127.53,127.49,34.90897483]
[1742583664597,7.9043,127.53,127.49,34.90897483]
[1742583665193,0.063,127.53,127.49,34.90897483]
[1742583665400,34.68765169,127.53,127.48,42.94465169]
[1742583665593,34.62465169,127.51,127.46,34.62465169]
[1742583665816,34.62465169,127.49,127.42,20.50219857]
[1742583666101,34.62465169,127.48,127.44,34.62465169]
[1742583666306,34.62465169,127.48,127.43,42.97465169]
[1742583666681,34.62465169,127.49,127.44,34.62465169]
[1742583666877,34.68765169,127.5,127.45,34.62465169]
[1742583667493,7.8437,127.49,127.45,34.62465169]
[1742583668789,42.46835169,127.49,127.44,34.90897483]
[1742583668974,46.73095169,127.49,127.44,34.90897483]
[1742583669178,34.62465169,127.48,127.44,0.28432314]
[1742583669599,42.46955169,127.48,127.44,0.28432314]
[1742583670209,7.8449,127.48,127.44,34.90897483]
[1742583671978,34.62465169,127.47,127.43,8.35]
[1742583673102,27.4558,127.48,127.44,34.62465169]
[1742583673295,7.8449,127.48,127.44,34.62465169]
[1742583673504,7.9064,127.5,127.46,34.62465169]
[1742583673887,0.063,127.5,127.49,34.90897483]
[1742583674189,0.063,127.5,127.49,69.81794966]
[1742583674382,0.063,127.5,127.49,36.76108252]
[1742583674699,0.063,127.5,127.49,55.41073138]
[1742583675085,0.063,127.5,127.49,34.90897483]
[1742583675483,0.063,127.5,127.49,53.84294683]
[1742583675688,0.063,127.53,127.5,46.66919514]
[1742583675996,0.063,127.53,127.52,53.84294683]
[1742583677810,0.063,127.53,127.52,61.68484683]
[1742583678591,0.0001,127.53,127.52,61.68484683]
[1742583678804,0.0001,127.53,127.52,70.20664683]
[1742583679910,0.0001,127.53,127.52,74.27404683]
[1742583680124,0.0001,127.56,127.55,63.30829514]
[1742583680284,0.063,127.63,127.59,0.28432314]
[1742583680611,0.063,127.63,127.61,0.28432314]
[1742583680994,0.063,127.63,127.61,34.90897483]
[1742583681400,0.063,127.63,127.62,53.84294683]
[1742583681612,0.063,127.63,127.62,55.40941221]
[1742583681818,0.063,127.63,127.62,90.0340639]
[1742583682012,0.063,127.63,127.62,97.8697639]
[1742583682605,0.063,127.65,127.64,73.84294683]
[1742583682802,0.063,127.65,127.64,83.70879374]
[1742583683710,0.063,127.65,127.64,91.54329374]
[1742583684213,0.063,127.65,127.64,83.70879374]
[1742583684617,0.063,127.65,127.64,55.40879374]
[1742583684797,0.063,127.65,127.64,62.14294683]
[1742583685112,0.063,127.65,127.64,8.58432314]
[1742583685688,0.063,127.65,127.64,42.92465169]
[1742583685900,0.063,127.65,127.64,43.20897483]
[1742583686299,0.063,127.65,127.64,62.14294683]
[1742583688004,0.063,127.66,127.65,19.21829514]
[1742583688197,0.063,127.66,127.65,53.84294683]
[1742583688398,0.063,127.69,127.65,97.01389852]
[1742583688610,0.063,127.69,127.68,88.46759852]
[1742583688818,0.063,127.69,127.68,98.33299806]
[1742583689921,0.063,127.69,127.68,106.16499806]
[1742583690128,0.063,127.75,127.72,20.28432314]
[1742583690302,0.063,127.75,127.74,53.84294683]
[1742583690503,0.063,127.75,127.74,19.21829514]
[1742583690827,0.063,127.75,127.74,0.28432314]
[1742583691328,0.063,127.75,127.74,53.84294683]
[1742583691928,0.063,127.75,127.74,0.28432314]
[1742583693509,0.063,127.75,127.74,63.23645595]
[1742583693704,0.063,127.75,127.74,97.86110764]
[1742583694136,0.063,127.75,127.74,304.92110764]
[1742583694309,0.063,127.75,127.74,303.35599852]
[1742583697204,0.063,127.77,127.76,0.28432314]
[1742583697418,0.063,127.77,127.76,55.40720682]
[1742583698125,0.063,127.77,127.76,63.23430682]
[1742583699422,0.063,127.77,127.76,63.68720682]
[1742583699627,0.063,127.77,127.76,62.12294683]
[1742583700223,0.063,127.77,127.76,69.95004683]
[1742583700618,0.063,127.78,127.77,19.21829514]
[1742583700816,0.063,127.78,127.77,55.4069855]
[1742583702136,0.063,127.78,127.77,63.2334855]
[1742583702341,0.063,127.78,127.76,0.28432314]
[1742583702635,0.063,127.78,127.77,34.90897483]
[1742583702833,0.063,127.78,127.77,53.84294683]
[1742583703335,0.063,127.78,127.77,53.55862369]
[1742583703632,0.063,127.78,127.77,53.84294683]
[1742583703825,0.063,127.78,127.77,55.40760293]
[1742583704024,0.063,127.78,127.77,63.23410293]
[1742583704629,0.063,127.78,127.77,55.40760293]
[1742583704825,0.063,127.78,127.77,63.23410293]
[1742583706018,0.063,127.79,127.78,19.21829514]
[1742583706208,0.063,127.81,127.8,108.46759852]
[1742583706415,0.063,127.82,127.81,19.21829514]
[1742583706722,0.063,127.86,127.85,19.21829514]
[1742583706935,0.063,127.86,127.85,63.68644119]
[1742583707238,0.063,127.86,127.85,98.31109288]
[1742583707426,0.063,127.86,127.85,106.13269288]
[1742583708415,0.063,127.86,127.85,71.50804119]
[1742583709442,0.063,127.86,127.85,27.49829514]
[1742583710351,0.063,127.86,127.85,62.12294683]
[1742583711245,0.063,127.86,127.85,8.56432314]
[1742583712427,0.063,127.86,127.85,0.28432314]
[1742583712623,42.54275169,127.86,127.83,206.88]
[1742583712835,34.62465169,127.85,127.83,206.88]
[1742583713032,34.62465169,127.85,127.83,0.28432314]
[1742583713249,34.62465169,127.85,127.8,34.62465169]
[1742583713442,7.8222,127.84,127.8,34.62465169]
[1742583713643,7.9181,127.86,127.8,34.62465169]
[1742583713644,0.063,127.86,127.83,0.28432314]
[1742583713843,0.063,127.86,127.84,0.28432314]
[1742583714433,0.063,127.86,127.84,34.90897483]
[1742583714639,0.063,127.86,127.85,53.84294683]
[1742583714851,0.063,127.86,127.85,295.24759852]
[1742583715026,0.063,127.87,127.86,88.46759852]
[1742583715232,0.063,127.87,127.86,98.29076293]
[1742583715453,0.063,127.87,127.86,106.11176293]
[1742583716937,0.0001,127.87,127.86,106.11176293]
[1742583717131,0.0001,127.88,127.86,106.11176293]
[1742583717335,0.0001,127.88,127.87,61.66334683]
[1742583718057,0.063,127.93,127.92,18.933972]
[1742583718244,0.063,127.93,127.92,62.10294683]
[1742583718434,0.063,127.93,127.92,27.47829514]
[1742583718639,34.68765169,127.93,127.9,0.28432314]
[1742583719736,0.063,127.93,127.9,0.28432314]
[1742583720235,34.68765169,127.93,127.9,0.28432314]
[1742583720463,34.62465169,127.92,127.88,8.40216157]
[1742583720764,34.62465169,127.92,127.89,0.28432314]
[1742583721143,0.063,127.93,127.89,53.70078526]
[1742583721353,34.68765169,127.93,127.89,34.90897483]
[1742583721549,42.50445169,127.93,127.89,0.28432314]
[1742583721760,34.68765169,127.93,127.89,0.28432314]
[1742583722261,34.68765169,127.93,127.89,19.21829514]
[1742583722494,0.063,127.93,127.9,34.62465169]
[1742583723060,0.063,127.93,127.89,53.84294683]
[1742583723458,0.063,127.93,127.91,0.28432314]
[1742583725438,0.063,127.93,127.92,96.72759852]
[1742583726058,0.063,127.93,127.92,104.54489852]
[1742583726359,0.063,127.93,127.92,71.48269799]
[1742583726539,0.063,127.93,127.92,62.10294683]
[1742583726939,0.063,127.93,127.92,69.92024683]
[1742583727665,0.063,127.93,127.92,8.54432314]
[1742583727955,7.8173,127.92,127.88,0.063]
[1742583728161,34.62465169,127.91,127.88,0.34732314]
[1742583728542,34.68765169,127.93,127.88,53.62162369]
[1742583728950,0.063,127.93,127.9,0.28432314]
[1742583729150,34.68765169,127.93,127.88,34.97197483]
[1742583729350,34.62465169,127.91,127.88,18.996972]
[1742583729552,34.62465169,127.89,127.88,0.063]
[1742583730150,42.44345169,127.9,127.88,0.063]
[1742583730351,42.44295169,127.91,127.88,0.063]
[1742583730562,4.1995,127.92,127.88,0.063]
[1742583730563,46.64175169,127.92,127.88,0.063]
[1742583730740,4.1995,127.92,127.89,0.28432314]
[1742583731442,12.017,127.92,127.89,0.28432314]
[1742583731638,0.063,127.93,127.9,0.14216157]
[1742583731855,0.063,127.93,127.91,53.70078526]
[1742583732068,0.063,127.93,127.92,53.55862369]
[1742583732450,0.063,127.93,127.91,0.28432314]
[1742583732643,34.68765169,127.93,127.91,0.28432314]
[1742583732957,34.68765169,127.93,127.9,8.26]
[1742583733161,34.62465169,127.92,127.9,8.26]
[1742583734461,42.50455169,127.93,127.9,8.26]
[1742583734668,34.62465169,127.91,127.88,0.063]
[1742583734846,34.62465169,127.91,127.88,0.34732314]
[1742583735047,34.62465169,127.9,127.88,0.063]
[1742583735564,34.62465169,127.91,127.88,0.063]
[1742583736568,42.44275169,127.91,127.88,0.063]
[1742583738365,0.063,127.93,127.9,0.28432314]
[1742583738565,0.063,127.93,127.92,53.84294683]
[1742583739665,0.063,127.93,127.92,61.66024683]
[1742583741691,0.063,127.93,127.92,27.03559514]
[1742583741861,0.063,127.93,127.92,8.24]
[1742583742062,0.063,127.93,127.92,16.34162314]
[1742583742276,0.063,127.93,127.9,206.66]
[1742583742491,34.62465169,127.91,127.9,206.66]
[1742583742673,34.62465169,127.91,127.88,8.303]
[1742583742873,34.62465169,127.9,127.88,0.063]
[1742583743590,34.62465169,127.91,127.88,0.063]
[1742583743786,34.62465169,127.9,127.88,0.063]
[1742583744690,20.0,127.89,127.88,0.063]
[1742583744883,54.62465169,127.89,127.88,0.063]
[1742583745282,34.62465169,127.89,127.88,0.063]
[1742583745666,42.44385169,127.89,127.88,0.063]
[1742583746893,34.62465169,127.89,127.88,0.063]
[1742583747269,42.44385169,127.89,127.88,0.063]
[1742583747586,34.62465169,127.9,127.88,0.063]
[1742583747786,34.62465169,127.91,127.88,7.8828]
[1742583747988,34.62465169,127.92,127.88,7.8828]
[1742583748171,34.62465169,127.91,127.88,0.063]
[1742583748372,34.62465169,127.89,127.88,0.063]
[1742583748983,42.98115169,127.89,127.88,0.063]
[1742583749582,47.05005169,127.89,127.81,16.094]
[1742583749786,34.62465169,127.86,127.81,50.71865169]
[1742583750994,34.62465169,127.85,127.81,16.094]
[1742583751494,34.62465169,127.86,127.81,50.71865169]
[1742583751988,34.62465169,127.87,127.82,34.90897483]
[1742583752524,34.62465169,127.88,127.82,34.90897483]
[1742583752788,34.62465169,127.88,127.83,34.62465169]
[1742583752985,34.62465169,127.88,127.84,7.8222]
[1742583753677,34.62465169,127.9,127.85,43.14897483]
[1742583753994,20.0188,127.92,127.85,43.14897483]
[1742583754178,46.82585169,127.92,127.88,0.28432314]
[1742583754491,38.69355169,127.92,127.88,0.28432314]
[1742583754676,34.62465169,127.91,127.87,0.28432314]
[1742583754873,34.62465169,127.91,127.86,42.44535169]
[1742583755395,34.62465169,127.89,127.84,42.44655169]
[1742583755596,34.62465169,127.88,127.84,8.24]
[1742583755897,34.62465169,127.87,127.84,8.24]
[1742583756401,34.62465169,127.88,127.84,8.24]
[1742583756785,42.44455169,127.88,127.84,8.24]
[1742583756987,34.62465169,127.89,127.85,0.28432314]
[1742583757898,34.62465169,127.89,127.85,19.21829514]
[1742583758497,38.69355169,127.92,127.87,34.62465169]
[1742583758692,38.69355169,127.92,127.88,7.8198]
[1742583759000,34.68765169,127.93,127.88,42.44445169]
[1742583759173,34.68765169,127.93,127.88,50.68445169]
[1742583760497,0.03,127.91,127.88,50.68445169]
[1742583762099,0.03,127.91,127.88,16.0598]
[1742583762290,0.03,127.91,127.89,0.28432314]
[1742583762602,0.03,127.91,127.9,34.90897483]
[1742583762784,0.03,127.91,127.9,61.66154683]
[1742583763380,0.063,127.93,127.91,0.28432314]
[1742583763700,0.063,127.93,127.92,43.14897483]
[1742583764793,0.063,127.93,127.92,69.90024683]
[1742583766190,0.063,127.93,127.92,35.27559514]
[1742583766505,0.063,127.93,127.92,19.21829514]
[1742583766705,0.063,127.93,127.92,27.45829514]
[1742583766905,0.063,127.93,127.92,8.24]
[1742583767103,34.68765169,127.93,127.9,206.7]
[1742583767288,34.62465169,127.92,127.9,206.7]
[1742583767490,34.62465169,127.91,127.89,8.24]
[1742583768299,0.063,127.93,127.89,8.24]
[1742583768300,54.62465169,127.92,127.89,8.24]
[1742583768503,34.68765169,127.93,127.89,16.0589]
[1742583769703,0.063,127.93,127.9,0.28432314]
[1742583769999,34.68765169,127.93,127.9,0.28432314]
[1742583770304,0.063,127.93,127.9,19.21829514]
[1742583770488,0.063,127.93,127.9,0.28432314]
[1742583770891,34.68765169,127.93,127.9,0.28432314]
[1742583771402,34.68765169,127.93,127.89,8.24]
[1742583771403,34.62465169,127.91,127.89,8.24]
[1742583771606,34.62465169,127.9,127.86,34.994972]
[1742583771808,34.62465169,127.91,127.86,69.61962369]
[1742583771988,34.62465169,127.91,127.87,0.28432314]
[1742583772610,42.44285169,127.91,127.87,0.28432314]
[1742583772907,7.8482,127.91,127.87,0.28432314]
[1742583773315,34.62465169,127.89,127.87,0.28432314]
[1742583774007,34.62465169,127.9,127.87,0.28432314]
[1742583774791,42.44355169,127.9,127.87,0.28432314]
[1742583774988,0.03,127.91,127.87,53.70078526]
[1742583775196,0.03,127.91,127.88,34.62465169]
[1742583775395,0.03,127.91,127.87,61.52078526]
[1742583775897,34.65465169,127.91,127.87,26.89613357]
[1742583776293,0.03,127.91,127.87,61.52078526]
[1742583776698,0.03,127.91,127.87,26.89613357]
[1742583776699,34.65465169,127.91,127.87,26.89613357]
[1742583776899,34.62465169,127.89,127.87,0.28432314]
[1742583778724,34.62465169,127.89,127.86,8.22]
[1742583779016,34.62465169,127.87,127.84,0.063]
[1742583779198,34.62465169,127.85,127.84,0.063]
[1742583779405,34.62465169,127.86,127.84,0.063]
[1742583780302,34.62465169,127.85,127.84,0.063]
[1742583781108,34.62465169,127.86,127.84,0.063]
[1742583782110,7.848,127.91,127.84,34.97197483]
[1742583782327,34.62465169,127.9,127.85,18.64964886]
[1742583782500,34.62465169,127.89,127.86,8.22]
[1742583782702,34.62465169,127.88,127.86,8.22]
[1742583783029,34.62465169,127.87,127.86,8.22]
[1742583783218,34.62465169,127.87,127.84,0.063]
[1742583783526,34.90897483,127.85,127.83,0.063]
[1742583783821,34.62465169,127.84,127.83,0.063]
[1742583784206,89.24930338,127.82,127.81,0.03]
[1742583784404,101.36250338,127.82,127.76,0.063]
[1742583784607,34.62465169,127.78,127.76,0.063]
[1742583786430,42.45055169,127.78,127.76,0.063]
[1742583786721,34.62465169,127.77,127.76,0.063]
[1742583787226,42.45115169,127.77,127.76,0.063]
[1742583788624,28.153,127.74,127.73,0.03]
[1742583788802,97.40230338,127.74,127.73,0.03]
[1742583789124,105.23070338,127.74,127.73,0.03]
[1742583789623,126.35514134,127.74,127.7,0.063]
[1742583789830,34.62465169,127.71,127.7,0.063]
[1742583791007,7.8308,127.7,127.69,0.0001]
[1742583791228,77.08010338,127.7,127.69,0.0001]
[1742583791933,20.0,127.67,127.61,8.22]
[1742583792232,34.62465169,127.63,127.58,265.94595169]
[1742583792404,34.62465169,127.64,127.59,53.55862369]
[1742583792929,34.62465169,127.64,127.6,0.28432314]
[1742583793127,34.62465169,127.64,127.61,18.79181043]
[1742583793319,27.8329,127.67,127.62,43.12897483]
[1742583793320,54.62465169,127.67,127.62,43.12897483]
[1742583793629,34.62465169,127.66,127.62,8.50432314]
[1742583794324,34.62465169,127.66,127.62,0.28432314]
[1742583794516,34.62465169,127.66,127.62,8.52432314]
[1742583794717,34.62465169,127.66,127.62,27.173972]
[1742583794947,20.0,127.67,127.62,61.79862369]
[1742583794948,54.62465169,127.67,127.62,61.79862369]
[1742583795245,54.62465169,127.67,127.62,69.63372369]
[1742583795941,34.62465169,127.66,127.62,35.009072]
[1742583796444,34.62465169,127.66,127.62,35.039072]
[1742583796641,34.62465169,127.66,127.62,8.27]
[1742583796851,34.62465169,127.66,127.62,16.1056]
[1742583797018,54.62465169,127.67,127.63,0.28432314]
[1742583797450,54.62465169,127.67,127.64,7.8345]
[1742583798025,54.62465169,127.67,127.63,8.11922314]
[1742583799346,34.62465169,127.67,127.63,8.11922314]
[1742583799524,34.62465169,127.72,127.67,0.28432314]
[1742583799727,34.62465169,127.72,127.67,42.84465169]
[1742583799942,34.62465169,127.71,127.67,8.22]
[1742583801339,34.62465169,127.69,127.67,8.22]
[1742583801937,34.62465169,127.69,127.67,16.0526]
[1742583802252,34.62465169,127.7,127.67,16.0526]
[1742583803218,34.62465169,127.69,127.67,7.8326]
[1742583803426,34.62465169,127.68,127.65,8.11822314]
[1742583803627,34.62465169,127.69,127.65,8.11822314]
[1742583803821,34.62465169,127.7,127.65,42.74287483]
[1742583804041,34.62465169,127.7,127.65,27.70302314]
[1742583804231,34.62465169,127.69,127.65,8.11822314]
[1742583804439,34.62465169,127.68,127.65,7.8339]
[1742583804952,34.62465169,127.67,127.64,16.0543]
[1742583805131,34.62465169,127.68,127.64,16.0543]
[1742583805558,34.62465169,127.68,127.64,7.8343]
[1742583805749,34.62465169,127.67,127.64,7.8343]
[1742583805923,34.62465169,127.68,127.64,7.8343]
[1742583806671,34.62465169,127.67,127.63,16.0548]
[1742583807036,34.62465169,127.67,127.63,7.8348]
[1742583807944,34.62465169,127.68,127.63,42.45945169]
[1742583808337,34.62465169,127.68,127.64,0.03]
[1742583808652,34.62465169,127.67,127.64,0.03]
[1742583809155,21.57393997,127.67,127.64,0.03]
[1742583809451,21.57393997,127.68,127.64,0.03]
[1742583810535,21.57393997,127.67,127.64,0.03]
[1742583812132,88.30401197,127.74,127.64,0.03]
[1742583812133,21.57393997,127.71,127.66,21.85826311]
[1742583812440,11.9276,127.75,127.68,21.57393997]
[1742583812758,21.57393997,127.73,127.68,21.57393997]
[1742583814063,21.57393997,127.73,127.69,7.8314]
[1742583814437,21.57393997,127.75,127.7,29.79393997]
[1742583814960,21.57393997,127.74,127.7,8.22]
[1742583815157,21.57393997,127.75,127.7,29.79393997]
[1742583816237,21.57393997,127.75,127.7,37.62423997]
[1742583816741,29.40183997,127.75,127.7,29.79393997]
[1742583816940,29.40183997,127.75,127.7,8.22]
[1742583816941,21.57393997,127.74,127.7,8.22]
[1742583817155,21.57393997,127.72,127.7,8.22]
[1742583818567,29.40383997,127.72,127.7,8.22]
[1742583818945,20.0,127.68,127.64,0.03]
[1742583819150,21.57393997,127.65,127.64,0.03]
[1742583820751,29.40783997,127.65,127.64,0.03]
[1742583821265,42.37200619,127.65,127.64,0.03]
[1742583822461,42.37200619,127.65,127.64,0.0001]
[1742583824081,61.30597819,127.65,127.64,0.0001]
[1742583824369,20.0,127.63,127.62,0.0001]
[1742583824568,34.53810619,127.63,127.62,0.0001]